[Event "Early-Titled-Tuesday-Blitz-February-13-2024"]
[Site "Chess.com"]
[Date "2024.02.13"]
[Round "7"]
[White "nj123456"]
[Black "wild3000"]
[Result "1-0"]
[WhiteElo "2283"]
[BlackElo "2379"]
[TimeControl "180+1"]
[EndTime "9:18:16 PST"]
[Termination "nj123456 won by resignation"]

1. e4 {[%clk 0:03:00]} 1... e6 {[%clk 0:02:04.6]} 2. d4 {[%clk 0:02:59.6]} 2...
a6 {[%clk 0:02:04.8]} 3. Nf3 {[%clk 0:02:58.8]} 3... b5 {[%clk 0:02:05.1]} 4.
Bd3 {[%clk 0:02:56.9]} 4... Bb7 {[%clk 0:02:05.4]} 5. O-O {[%clk 0:02:56.1]}
5... d6 {[%clk 0:02:05.9]} 6. Re1 {[%clk 0:02:55]} 6... c5 {[%clk 0:02:05.8]} 7.
c3 {[%clk 0:02:55.2]} 7... Nf6 {[%clk 0:02:05.4]} 8. Nbd2 {[%clk 0:02:54.6]}
8... Be7 {[%clk 0:02:05.3]} 9. Nf1 {[%clk 0:02:53.5]} 9... O-O {[%clk 0:02:00]}
10. Qe2 {[%clk 0:02:46.2]} 10... Nc6 {[%clk 0:01:58.4]} 11. Bg5 {[%clk
0:02:38.2]} 11... cxd4 {[%clk 0:01:55.7]} 12. cxd4 {[%clk 0:02:36.9]} 12... Nb4
{[%clk 0:01:56]} 13. Bb1 {[%clk 0:02:35.3]} 13... h6 {[%clk 0:01:56.1]} 14. Bh4
{[%clk 0:02:33.6]} 14... Nh5 {[%clk 0:01:54.2]} 15. Bxe7 {[%clk 0:02:33.4]}
15... Qxe7 {[%clk 0:01:55.1]} 16. a3 {[%clk 0:02:32.6]} 16... Nc6 {[%clk
0:01:55.2]} 17. Qe3 {[%clk 0:02:32.5]} 17... e5 {[%clk 0:01:52.5]} 18. Ng3
{[%clk 0:02:25.8]} 18... Nxg3 {[%clk 0:01:50.8]} 19. hxg3 {[%clk 0:02:26.7]}
19... Na5 {[%clk 0:01:46]} 20. Ba2 {[%clk 0:02:26]} 20... Rac8 {[%clk
0:01:44.6]} 21. dxe5 {[%clk 0:02:16.6]} 21... dxe5 {[%clk 0:01:44.3]} 22. Qb6
{[%clk 0:02:16.6]} 22... Qc7 {[%clk 0:01:42.7]} 23. Qxc7 {[%clk 0:02:15.3]}
23... Rxc7 {[%clk 0:01:43.6]} 24. Nxe5 {[%clk 0:02:15.7]} 24... Rc2 {[%clk
0:01:41.4]} 25. b4 {[%clk 0:02:07.6]} 25... Nc4 {[%clk 0:01:41]} 26. Bxc4 {[%clk
0:02:05.7]} 26... bxc4 {[%clk 0:01:40.7]} 27. Rac1 {[%clk 0:02:05.9]} 27... Rxc1
{[%clk 0:01:26.5]} 28. Rxc1 {[%clk 0:02:06.8]} 28... Bxe4 {[%clk 0:01:26.4]} 29.
Rxc4 {[%clk 0:02:06.5]} 29... Rd8 {[%clk 0:01:22.8]} 30. Rxe4 {[%clk 0:02:05]}
30... Rd1+ {[%clk 0:01:22.6]} 31. Kh2 {[%clk 0:02:05]} 31... f5 {[%clk
0:01:22.8]} 32. Rc4 {[%clk 0:02:03.5]} 32... Rd2 {[%clk 0:01:21.7]} 33. f3
{[%clk 0:02:00.6]} 33... Ra2 {[%clk 0:01:20.2]} 34. Rc3 {[%clk 0:01:59.7]} 34...
Kf8 {[%clk 0:01:19.6]} 35. Nd7+ {[%clk 0:01:59.1]} 35... Ke7 {[%clk 0:01:19.6]}
36. Nc5 {[%clk 0:02:00]} 36... Kf6 {[%clk 0:01:16.6]} 37. Nxa6 {[%clk
0:01:59.7]} 37... g5 {[%clk 0:01:17.5]} 38. Nc5 {[%clk 0:01:58.8]} 38... h5
{[%clk 0:01:17.2]} 39. b5 {[%clk 0:01:58.6]} 39... Rb2 {[%clk 0:01:15.2]} 40.
Rb3 {[%clk 0:01:58.6]} 40... Rc2 {[%clk 0:01:15.1]} 41. b6 {[%clk 0:01:57.7]}
41... Rxc5 {[%clk 0:01:15.1]} 42. b7 {[%clk 0:01:58]} 42... h4 {[%clk
0:01:15.6]} 43. gxh4 {[%clk 0:01:57.6]} 43... Rc4 {[%clk 0:01:14.1]} 44. b8=Q
{[%clk 0:01:56.7]} 44... Rxh4+ {[%clk 0:01:13.9]} 45. Kg1 {[%clk 0:01:57.3]} 1-0

[Event "Early-Titled-Tuesday-Blitz-February-13-2024"]
[Site "Chess.com"]
[Date "2024.02.13"]
[Round "7"]
[White "kleinebeer98"]
[Black "PLAYER_2006_M"]
[Result "0-1"]
[WhiteElo "2863"]
[BlackElo "3025"]
[TimeControl "180+1"]
[EndTime "9:18:20 PST"]
[Termination "PLAYER_2006_M won by resignation"]

1. e4 {[%clk 0:03:00.9]} 1... e5 {[%clk 0:02:59.5]} 2. Nf3 {[%clk 0:03:00.7]}
2... Nf6 {[%clk 0:03:00.1]} 3. d4 {[%clk 0:03:00.4]} 3... Nxe4 {[%clk 0:03:00]}
4. Bd3 {[%clk 0:03:00.4]} 4... d5 {[%clk 0:02:59.9]} 5. Nxe5 {[%clk 0:03:00.1]}
5... Nd7 {[%clk 0:02:58.6]} 6. Nxd7 {[%clk 0:02:59.9]} 6... Bxd7 {[%clk
0:02:58.4]} 7. O-O {[%clk 0:03:00.8]} 7... Bd6 {[%clk 0:02:57.3]} 8. c4 {[%clk
0:03:01.2]} 8... O-O {[%clk 0:02:56.4]} 9. Nc3 {[%clk 0:02:57.6]} 9... Nxc3
{[%clk 0:02:49.7]} 10. bxc3 {[%clk 0:02:58.5]} 10... dxc4 {[%clk 0:02:49.4]} 11.
Bxc4 {[%clk 0:02:59.4]} 11... Qf6 {[%clk 0:02:48.3]} 12. Qh5 {[%clk 0:02:50.1]}
12... Rae8 {[%clk 0:02:42.3]} 13. Bd3 {[%clk 0:02:46.1]} 13... h6 {[%clk
0:02:26.3]} 14. Bd2 {[%clk 0:02:29.1]} 14... Bf4 {[%clk 0:02:21.9]} 15. Rad1
{[%clk 0:02:15.8]} 15... Ba4 {[%clk 0:02:11.9]} 16. Bxf4 {[%clk 0:02:04.3]}
16... Bxd1 {[%clk 0:02:11.5]} 17. Qf5 {[%clk 0:01:57.9]} 17... Qxf5 {[%clk
0:01:56.3]} 18. Bxf5 {[%clk 0:01:58.8]} 18... Be2 {[%clk 0:01:51.4]} 19. Rb1
{[%clk 0:01:59.3]} 19... Re7 {[%clk 0:01:29.7]} 20. Rxb7 {[%clk 0:01:47.2]}
20... Bg4 {[%clk 0:01:24.7]} 21. h3 {[%clk 0:01:11.1]} 21... Bxf5 {[%clk
0:01:21.7]} 22. Kh2 {[%clk 0:01:12]} 22... Be4 {[%clk 0:01:13.8]} 23. Rxa7
{[%clk 0:01:11.9]} 23... Ra8 {[%clk 0:01:14.1]} 24. Rxc7 {[%clk 0:01:10.7]}
24... Rxc7 {[%clk 0:01:14.1]} 25. Bxc7 {[%clk 0:01:11.6]} 25... Rxa2 {[%clk
0:01:14.6]} 26. Kg3 {[%clk 0:01:11.6]} 26... Ra3 {[%clk 0:01:11.8]} 27. Be5
{[%clk 0:01:11.1]} 27... Rxc3+ {[%clk 0:01:11.2]} 28. Kf4 {[%clk 0:01:12]} 28...
Bxg2 {[%clk 0:01:10.2]} 0-1

[Event "Early-Titled-Tuesday-Blitz-February-13-2024"]
[Site "Chess.com"]
[Date "2024.02.13"]
[Round "7"]
[White "tantaan"]
[Black "AlexPapasimakopoulos"]
[Result "0-1"]
[WhiteElo "2509"]
[BlackElo "2724"]
[TimeControl "180+1"]
[EndTime "9:18:21 PST"]
[Termination "AlexPapasimakopoulos won by resignation"]

1. e4 {[%clk 0:02:59.1]} 1... e6 {[%clk 0:02:57.7]} 2. d4 {[%clk 0:02:59.1]}
2... d5 {[%clk 0:02:54.9]} 3. Nc3 {[%clk 0:02:59.3]} 3... Bb4 {[%clk 0:02:53.4]}
4. e5 {[%clk 0:02:59.6]} 4... c5 {[%clk 0:02:53.2]} 5. Bd2 {[%clk 0:02:59.8]}
5... Ne7 {[%clk 0:02:52.5]} 6. Nb5 {[%clk 0:02:59.5]} 6... Bxd2+ {[%clk
0:02:52.6]} 7. Qxd2 {[%clk 0:03:00.4]} 7... O-O {[%clk 0:02:52.8]} 8. f4 {[%clk
0:02:57]} 8... Nbc6 {[%clk 0:02:52.3]} 9. Nf3 {[%clk 0:02:55.4]} 9... cxd4
{[%clk 0:02:51.9]} 10. Nbxd4 {[%clk 0:02:53.3]} 10... Qb6 {[%clk 0:02:51.8]} 11.
O-O-O {[%clk 0:02:34.8]} 11... Bd7 {[%clk 0:02:50.9]} 12. Kb1 {[%clk 0:02:33.1]}
12... a5 {[%clk 0:02:47.3]} 13. g4 {[%clk 0:02:30.2]} 13... a4 {[%clk
0:02:43.3]} 14. h4 {[%clk 0:02:22.2]} 14... Nxd4 {[%clk 0:02:43.3]} 15. Nxd4
{[%clk 0:02:21.5]} 15... Nc6 {[%clk 0:02:34.2]} 16. Nb5 {[%clk 0:02:03.4]} 16...
Nxe5 {[%clk 0:02:26.3]} 17. fxe5 {[%clk 0:02:02]} 17... Bxb5 {[%clk 0:02:26.6]}
18. Qb4 {[%clk 0:02:01.7]} 18... Ra5 {[%clk 0:02:27.3]} 19. Rh3 {[%clk
0:01:35.8]} 19... Qa6 {[%clk 0:02:22.4]} 20. Bxb5 {[%clk 0:01:31.1]} 20... Rxb5
{[%clk 0:02:23.3]} 21. Qd4 {[%clk 0:01:28.6]} 21... Qb6 {[%clk 0:02:14.9]} 22.
Qxb6 {[%clk 0:01:24.7]} 22... Rxb6 {[%clk 0:02:15.8]} 23. Rd4 {[%clk 0:01:25.2]}
23... Ra8 {[%clk 0:02:15.2]} 24. a3 {[%clk 0:01:21.8]} 24... Rc6 {[%clk
0:02:13.4]} 25. c3 {[%clk 0:01:20.5]} 25... b5 {[%clk 0:02:12.7]} 26. Kc2 {[%clk
0:01:19.6]} 26... Rc4 {[%clk 0:02:12.3]} 27. Rhd3 {[%clk 0:01:19.2]} 27... Rac8
{[%clk 0:02:10.6]} 28. Kd2 {[%clk 0:01:10.2]} 28... Kf8 {[%clk 0:02:02.5]} 29.
Rf3 {[%clk 0:01:06.2]} 29... Rxd4+ {[%clk 0:01:59.3]} 30. cxd4 {[%clk
0:01:06.4]} 30... Rc4 {[%clk 0:01:59.2]} 31. Kd3 {[%clk 0:01:03]} 31... b4
{[%clk 0:01:56.2]} 32. axb4 {[%clk 0:00:52.3]} 32... Rxb4 {[%clk 0:01:55.9]} 33.
Rf2 {[%clk 0:00:47.7]} 33... h6 {[%clk 0:01:48.4]} 34. Kc2 {[%clk 0:00:45.3]}
34... Rxd4 {[%clk 0:01:47.7]} 0-1

[Event "Early-Titled-Tuesday-Blitz-February-13-2024"]
[Site "Chess.com"]
[Date "2024.02.13"]
[Round "7"]
[White "pfalcon1949"]
[Black "PushingpawnsNYC"]
[Result "0-1"]
[WhiteElo "1935"]
[BlackElo "2334"]
[TimeControl "180+1"]
[EndTime "9:18:23 PST"]
[Termination "PushingpawnsNYC won by resignation"]

1. e4 {[%clk 0:03:00.9]} 1... c5 {[%clk 0:02:54.6]} 2. Nf3 {[%clk 0:03:00.5]}
2... e6 {[%clk 0:02:55]} 3. d4 {[%clk 0:03:00.8]} 3... cxd4 {[%clk 0:02:55.7]}
4. Nxd4 {[%clk 0:03:01.3]} 4... a6 {[%clk 0:02:56.6]} 5. c4 {[%clk 0:03:00.2]}
5... Qc7 {[%clk 0:02:55.6]} 6. Nc3 {[%clk 0:02:59.1]} 6... Nf6 {[%clk
0:02:48.2]} 7. a3 {[%clk 0:02:58]} 7... b6 {[%clk 0:02:46.3]} 8. Bd3 {[%clk
0:02:58.3]} 8... Bb7 {[%clk 0:02:46.3]} 9. O-O {[%clk 0:02:55.5]} 9... h5 {[%clk
0:02:46.5]} 10. Be3 {[%clk 0:02:54.7]} 10... Ng4 {[%clk 0:02:46.3]} 11. Nf3
{[%clk 0:02:48.9]} 11... Nc6 {[%clk 0:02:34.2]} 12. g3 {[%clk 0:02:36.4]} 12...
Nxe3 {[%clk 0:02:14.7]} 13. fxe3 {[%clk 0:02:35.3]} 13... Bc5 {[%clk 0:02:15.3]}
14. Qe2 {[%clk 0:02:34.8]} 14... Ne5 {[%clk 0:02:09.2]} 15. Nxe5 {[%clk
0:02:22.4]} 15... Qxe5 {[%clk 0:02:07.1]} 16. Qf3 {[%clk 0:02:13.2]} 16... O-O-O
{[%clk 0:01:43]} 17. Rac1 {[%clk 0:02:01.3]} 17... g5 {[%clk 0:01:38.5]} 18. b4
{[%clk 0:02:00.5]} 18... Bd6 {[%clk 0:01:35.1]} 19. Qf6 {[%clk 0:01:50.6]} 19...
g4 {[%clk 0:01:18.2]} 20. Qxe5 {[%clk 0:01:47.9]} 20... Bxe5 {[%clk 0:01:18.3]}
21. Rxf7 {[%clk 0:01:46.9]} 21... h4 {[%clk 0:01:18.7]} 22. Kg2 {[%clk
0:01:40.2]} 22... hxg3 {[%clk 0:01:17.8]} 23. hxg3 {[%clk 0:01:41.1]} 23... Rh3
{[%clk 0:01:16.5]} 24. Rh1 {[%clk 0:01:33.4]} 24... Rxg3+ {[%clk 0:01:04.3]} 25.
Kf2 {[%clk 0:01:32.9]} 25... Rh3 {[%clk 0:01:01.2]} 26. Rh7 {[%clk 0:01:28.8]}
26... Rxh1 {[%clk 0:00:58.8]} 27. Rxh1 {[%clk 0:01:27.3]} 27... Bxc3 {[%clk
0:00:59]} 28. Rh4 {[%clk 0:01:20.1]} 28... Rg8 {[%clk 0:00:53.8]} 29. Kg3 {[%clk
0:01:19]} 29... Be1+ {[%clk 0:00:52.9]} 0-1

[Event "Early-Titled-Tuesday-Blitz-February-13-2024"]
[Site "Chess.com"]
[Date "2024.02.13"]
[Round "7"]
[White "HeroWilczek"]
[Black "ChessQueen"]
[Result "0-1"]
[WhiteElo "2484"]
[BlackElo "2685"]
[TimeControl "180+1"]
[EndTime "9:18:37 PST"]
[Termination "ChessQueen won by resignation"]

1. e4 {[%clk 0:03:00.9]} 1... c6 {[%clk 0:02:57.4]} 2. d4 {[%clk 0:02:59.9]}
2... d5 {[%clk 0:02:57.3]} 3. Nc3 {[%clk 0:03:00.7]} 3... dxe4 {[%clk
0:02:57.4]} 4. Nxe4 {[%clk 0:03:01.6]} 4... Nf6 {[%clk 0:02:57.9]} 5. Nxf6+
{[%clk 0:03:02]} 5... exf6 {[%clk 0:02:58.8]} 6. c3 {[%clk 0:03:02.1]} 6... Bd6
{[%clk 0:02:59]} 7. Bd3 {[%clk 0:03:02.7]} 7... Na6 {[%clk 0:02:59.4]} 8. Ne2
{[%clk 0:03:02.7]} 8... Nc7 {[%clk 0:02:57.8]} 9. O-O {[%clk 0:03:02.8]} 9...
O-O {[%clk 0:02:57.8]} 10. Bf4 {[%clk 0:03:03.2]} 10... Bg4 {[%clk 0:02:52.3]}
11. Bxd6 {[%clk 0:02:55.6]} 11... Qxd6 {[%clk 0:02:53.2]} 12. h3 {[%clk
0:02:55.4]} 12... Bh5 {[%clk 0:02:52.5]} 13. Qc2 {[%clk 0:02:53.7]} 13... Bg6
{[%clk 0:02:49.8]} 14. Rfe1 {[%clk 0:02:54]} 14... Rfe8 {[%clk 0:02:49]} 15.
Bxg6 {[%clk 0:02:52.1]} 15... hxg6 {[%clk 0:02:48.7]} 16. Ng3 {[%clk 0:02:52.6]}
16... Nd5 {[%clk 0:02:47.8]} 17. a3 {[%clk 0:02:33.8]} 17... f5 {[%clk
0:02:46.8]} 18. Rad1 {[%clk 0:02:28.3]} 18... Rad8 {[%clk 0:02:37.3]} 19. Nf1
{[%clk 0:02:19.5]} 19... Nf6 {[%clk 0:02:35.1]} 20. Ne3 {[%clk 0:02:11.8]} 20...
b5 {[%clk 0:02:25.9]} 21. c4 {[%clk 0:02:02.1]} 21... f4 {[%clk 0:02:25.3]} 22.
Ng4 {[%clk 0:01:47.9]} 22... Rxe1+ {[%clk 0:02:18.8]} 23. Rxe1 {[%clk
0:01:47.6]} 23... Nxg4 {[%clk 0:02:17.8]} 24. hxg4 {[%clk 0:01:46.7]} 24... Qxd4
{[%clk 0:02:17.9]} 25. cxb5 {[%clk 0:01:45.4]} 25... cxb5 {[%clk 0:02:18.8]} 26.
Qb3 {[%clk 0:01:17.7]} 26... Qd7 {[%clk 0:02:10.3]} 27. f3 {[%clk 0:01:12.4]}
27... a6 {[%clk 0:01:59.5]} 28. Re4 {[%clk 0:01:08.3]} 28... Qa7+ {[%clk
0:01:53.4]} 29. Kh2 {[%clk 0:01:03.2]} 29... Rd2 {[%clk 0:01:44.1]} 30. Qb4
{[%clk 0:00:26.5]} 30... Qf2 {[%clk 0:01:39.6]} 0-1

[Event "Early-Titled-Tuesday-Blitz-February-13-2024"]
[Site "Chess.com"]
[Date "2024.02.13"]
[Round "7"]
[White "InitiatingASC"]
[Black "InadaC"]
[Result "0-1"]
[WhiteElo "2386"]
[BlackElo "2205"]
[TimeControl "180+1"]
[EndTime "9:18:47 PST"]
[Termination "InadaC won by resignation"]

1. e4 {[%clk 0:01:59.1]} 1... e6 {[%clk 0:02:57.7]} 2. Nf3 {[%clk 0:01:59]} 2...
d5 {[%clk 0:02:56.6]} 3. exd5 {[%clk 0:01:58.9]} 3... exd5 {[%clk 0:02:55.9]} 4.
d4 {[%clk 0:01:59.1]} 4... Nf6 {[%clk 0:02:55.9]} 5. Bd3 {[%clk 0:01:59]} 5...
Bd6 {[%clk 0:02:55.2]} 6. Qe2+ {[%clk 0:01:58.5]} 6... Qe7 {[%clk 0:02:53.3]} 7.
Qxe7+ {[%clk 0:01:57.9]} 7... Bxe7 {[%clk 0:02:53.3]} 8. Bf4 {[%clk 0:01:56.8]}
8... c5 {[%clk 0:02:52.2]} 9. dxc5 {[%clk 0:01:55.9]} 9... Bxc5 {[%clk 0:02:52]}
10. Nbd2 {[%clk 0:01:55.3]} 10... O-O {[%clk 0:02:51]} 11. Nb3 {[%clk
0:01:55.4]} 11... Re8+ {[%clk 0:02:51.3]} 12. Kf1 {[%clk 0:01:48.8]} 12... Bb6
{[%clk 0:02:50.8]} 13. Rd1 {[%clk 0:01:47.3]} 13... Nc6 {[%clk 0:02:50.8]} 14.
c3 {[%clk 0:01:43]} 14... Bg4 {[%clk 0:02:50.2]} 15. Be2 {[%clk 0:01:40.7]}
15... Rad8 {[%clk 0:02:45.9]} 16. h3 {[%clk 0:01:41]} 16... Bh5 {[%clk
0:02:45.8]} 17. g4 {[%clk 0:01:38.9]} 17... Bg6 {[%clk 0:02:45.9]} 18. Nh4
{[%clk 0:01:37.8]} 18... Be4 {[%clk 0:02:45.8]} 19. f3 {[%clk 0:01:38]} 19...
Bc2 {[%clk 0:02:44.5]} 20. Rd2 {[%clk 0:01:38.4]} 20... Bxb3 {[%clk 0:02:44.1]}
21. axb3 {[%clk 0:01:38.4]} 21... d4 {[%clk 0:02:44.7]} 22. Nf5 {[%clk
0:01:31.8]} 22... Nd5 {[%clk 0:02:29.3]} 23. Bg3 {[%clk 0:01:05.4]} 23... dxc3
{[%clk 0:02:19.5]} 24. bxc3 {[%clk 0:01:05]} 24... Ne3+ {[%clk 0:02:06.4]} 25.
Ke1 {[%clk 0:00:57.2]} 25... Nxf5 {[%clk 0:02:01.5]} 26. gxf5 {[%clk 0:00:54.6]}
26... Rxd2 {[%clk 0:01:55.8]} 27. Kxd2 {[%clk 0:00:54.8]} 27... Be3+ {[%clk
0:01:54.9]} 28. Kd1 {[%clk 0:00:48.6]} 28... Rd8+ {[%clk 0:01:54.5]} 29. Ke1
{[%clk 0:00:45.8]} 29... Bd2+ {[%clk 0:01:53.2]} 30. Kf2 {[%clk 0:00:44.3]}
30... Bxc3 {[%clk 0:01:53.9]} 31. Bc4 {[%clk 0:00:44.7]} 31... Rd2+ {[%clk
0:01:51.9]} 32. Ke3 {[%clk 0:00:43.2]} 32... Nb4 {[%clk 0:01:43.8]} 33. Rc1
{[%clk 0:00:36.3]} 33... Nc2+ {[%clk 0:01:40.2]} 34. Ke4 {[%clk 0:00:23.4]}
34... Rd4+ {[%clk 0:01:37.8]} 0-1

[Event "Early-Titled-Tuesday-Blitz-February-13-2024"]
[Site "Chess.com"]
[Date "2024.02.13"]
[Round "7"]
[White "noblerone"]
[Black "Ready4abattle"]
[Result "0-1"]
[WhiteElo "2477"]
[BlackElo "2270"]
[TimeControl "180+1"]
[EndTime "9:18:51 PST"]
[Termination "Ready4abattle won by resignation"]

1. d4 {[%clk 0:03:00.9]} 1... Nf6 {[%clk 0:02:59.8]} 2. c4 {[%clk 0:02:57.7]}
2... g6 {[%clk 0:02:59.6]} 3. Nc3 {[%clk 0:02:56.5]} 3... d5 {[%clk 0:03:00]} 4.
Nf3 {[%clk 0:02:57.4]} 4... Bg7 {[%clk 0:02:59.7]} 5. Bg5 {[%clk 0:02:58.3]}
5... dxc4 {[%clk 0:02:59.8]} 6. e3 {[%clk 0:02:57.8]} 6... c5 {[%clk 0:02:50]}
7. Bxc4 {[%clk 0:02:45.7]} 7... O-O {[%clk 0:02:50.1]} 8. O-O {[%clk 0:02:41.7]}
8... Nc6 {[%clk 0:02:47.8]} 9. dxc5 {[%clk 0:02:19.8]} 9... Qa5 {[%clk
0:02:45.5]} 10. Rc1 {[%clk 0:02:08]} 10... Qxc5 {[%clk 0:02:42]} 11. Bb3 {[%clk
0:01:30.6]} 11... Qa5 {[%clk 0:02:39.5]} 12. h3 {[%clk 0:01:24.3]} 12... Bf5
{[%clk 0:02:38.1]} 13. Qe2 {[%clk 0:01:22.8]} 13... Ne4 {[%clk 0:02:20.1]} 14.
Nd5 {[%clk 0:01:13.4]} 14... Nxg5 {[%clk 0:02:01.3]} 15. Nxg5 {[%clk 0:01:12.4]}
15... h6 {[%clk 0:01:53.3]} 16. Nf3 {[%clk 0:01:02.8]} 16... Rfd8 {[%clk
0:01:47.4]} 17. Rfd1 {[%clk 0:00:54.8]} 17... Be6 {[%clk 0:01:40.4]} 18. e4
{[%clk 0:00:48.8]} 18... Rac8 {[%clk 0:01:38.4]} 19. Rxc6 {[%clk 0:00:42.6]}
19... Rxc6 {[%clk 0:01:27.4]} 20. Nxe7+ {[%clk 0:00:42.3]} 20... Kf8 {[%clk
0:01:27.9]} 21. Nxc6 {[%clk 0:00:42.7]} 21... Rxd1+ {[%clk 0:01:23.5]} 22. Qxd1
{[%clk 0:00:41.9]} 22... bxc6 {[%clk 0:01:24.2]} 23. Bxe6 {[%clk 0:00:41.7]}
23... fxe6 {[%clk 0:01:22.4]} 24. Qd7 {[%clk 0:00:36.4]} 24... Qxa2 {[%clk
0:01:15.8]} 25. Qxe6 {[%clk 0:00:20.6]} 25... Qxe6 {[%clk 0:01:14.7]} 0-1

[Event "Early-Titled-Tuesday-Blitz-February-13-2024"]
[Site "Chess.com"]
[Date "2024.02.13"]
[Round "7"]
[White "SpongeBob_03"]
[Black "fabianvivasz"]
[Result "0-1"]
[WhiteElo "2209"]
[BlackElo "2353"]
[TimeControl "180+1"]
[EndTime "9:18:51 PST"]
[Termination "fabianvivasz won by resignation"]

1. e4 {[%clk 0:02:53.7]} 1... e5 {[%clk 0:02:57.9]} 2. Nf3 {[%clk 0:02:53.7]}
2... Nc6 {[%clk 0:02:57.6]} 3. Bc4 {[%clk 0:02:53.7]} 3... Nf6 {[%clk
0:02:57.7]} 4. d3 {[%clk 0:02:54]} 4... Bc5 {[%clk 0:02:57.7]} 5. c3 {[%clk
0:02:54.5]} 5... O-O {[%clk 0:02:58.1]} 6. h3 {[%clk 0:02:52]} 6... h6 {[%clk
0:02:52.9]} 7. g4 {[%clk 0:02:51.6]} 7... d5 {[%clk 0:02:51.2]} 8. exd5 {[%clk
0:02:51.6]} 8... Nxd5 {[%clk 0:02:52.1]} 9. Nbd2 {[%clk 0:02:45.1]} 9... Nb6
{[%clk 0:02:30.5]} 10. Bb3 {[%clk 0:02:19.3]} 10... Qxd3 {[%clk 0:02:21.9]} 11.
Bc2 {[%clk 0:02:17.7]} 11... Qd8 {[%clk 0:02:15.7]} 12. Qe2 {[%clk 0:02:17.1]}
12... Nd5 {[%clk 0:02:04.9]} 13. Ne4 {[%clk 0:02:09.1]} 13... Bb6 {[%clk
0:02:02.9]} 14. c4 {[%clk 0:02:01.5]} 14... Ndb4 {[%clk 0:01:52]} 15. Bb1 {[%clk
0:01:59.1]} 15... f5 {[%clk 0:01:26.8]} 16. a3 {[%clk 0:01:52.4]} 16... fxe4
{[%clk 0:00:46.3]} 17. Qxe4 {[%clk 0:01:50.2]} 17... Qf6 {[%clk 0:00:46.7]} 18.
O-O {[%clk 0:01:42.3]} 18... Qxf3 {[%clk 0:00:41.6]} 19. Qh7+ {[%clk 0:01:40.5]}
19... Kf7 {[%clk 0:00:41.7]} 20. Bg6+ {[%clk 0:01:40.3]} 20... Kf6 {[%clk
0:00:41.2]} 21. axb4 {[%clk 0:01:31.6]} 21... Qg3+ {[%clk 0:00:39.9]} 22. Kh1
{[%clk 0:01:31.7]} 22... Qxh3+ {[%clk 0:00:40.3]} 23. Kg1 {[%clk 0:01:32.2]}
23... Qxg4+ {[%clk 0:00:40]} 24. Kh1 {[%clk 0:01:32.8]} 24... Qf3+ {[%clk
0:00:38]} 25. Kg1 {[%clk 0:01:32.8]} 25... Bh3 {[%clk 0:00:37.9]} 26. Be4 {[%clk
0:01:31.8]} 26... Qg4+ {[%clk 0:00:31.3]} 27. Kh2 {[%clk 0:01:32]} 27... Bxf1
{[%clk 0:00:28.2]} 28. Ra3 {[%clk 0:01:32.2]} 28... Bxf2 {[%clk 0:00:26.2]} 29.
Rf3+ {[%clk 0:01:30.8]} 29... Ke7 {[%clk 0:00:23.9]} 0-1

[Event "Early-Titled-Tuesday-Blitz-February-13-2024"]
[Site "Chess.com"]
[Date "2024.02.13"]
[Round "7"]
[White "onnoelgersma"]
[Black "KanalSzachowy"]
[Result "1-0"]
[WhiteElo "2546"]
[BlackElo "2405"]
[TimeControl "180+1"]
[EndTime "9:18:53 PST"]
[Termination "onnoelgersma won by checkmate"]

1. c3 {[%clk 0:03:00.9]} 1... e5 {[%clk 0:02:58.3]} 2. d4 {[%clk 0:02:59.6]}
2... e4 {[%clk 0:02:58.8]} 3. Bf4 {[%clk 0:02:54.6]} 3... d5 {[%clk 0:02:56.8]}
4. e3 {[%clk 0:02:55.1]} 4... Bd6 {[%clk 0:02:56.9]} 5. Bxd6 {[%clk 0:02:54.2]}
5... Qxd6 {[%clk 0:02:57.8]} 6. c4 {[%clk 0:02:54.5]} 6... c6 {[%clk 0:02:54.7]}
7. Nc3 {[%clk 0:02:54.9]} 7... Nf6 {[%clk 0:02:54.3]} 8. Qb3 {[%clk 0:02:55.3]}
8... O-O {[%clk 0:02:51.5]} 9. Rc1 {[%clk 0:02:52]} 9... a6 {[%clk 0:02:43.9]}
10. Nge2 {[%clk 0:02:14.9]} 10... b5 {[%clk 0:02:37.4]} 11. cxd5 {[%clk
0:02:12.8]} 11... cxd5 {[%clk 0:02:38.1]} 12. Nf4 {[%clk 0:02:13.3]} 12... Be6
{[%clk 0:02:36.5]} 13. Be2 {[%clk 0:02:07.5]} 13... Nc6 {[%clk 0:02:34.6]} 14.
O-O {[%clk 0:02:02.9]} 14... Nxd4 {[%clk 0:02:28.7]} 15. Qd1 {[%clk 0:01:52]}
15... Nf5 {[%clk 0:02:23.9]} 16. Qd2 {[%clk 0:01:29.9]} 16... Rad8 {[%clk
0:02:20.4]} 17. Rfd1 {[%clk 0:01:06.3]} 17... d4 {[%clk 0:02:08.2]} 18. Nxe6
{[%clk 0:00:59.1]} 18... Qxe6 {[%clk 0:02:08.3]} 19. exd4 {[%clk 0:00:58.7]}
19... Nxd4 {[%clk 0:01:58.9]} 20. Qe3 {[%clk 0:00:46.9]} 20... Nxe2+ {[%clk
0:01:58.4]} 21. Nxe2 {[%clk 0:00:28.6]} 21... Qxa2 {[%clk 0:01:57.5]} 22. Nd4
{[%clk 0:00:24.7]} 22... Qxb2 {[%clk 0:01:55.8]} 23. Nf5 {[%clk 0:00:25.2]}
23... Rfe8 {[%clk 0:01:22.5]} 24. Qg5 {[%clk 0:00:16.6]} 24... Rf8 {[%clk
0:01:22.6]} 25. Qxg7# {[%clk 0:00:14.8]} 1-0